Cogmind - Beta 17.1 @@@ ROGUE MODE // 2026.09.05 @ 01:31:12 Player: mischief_2000 Result: Destroyed by Autobeam Turret with Autobeam Performance ------------- Evolutions (0) 0 Regions Visited (3) 600 Robots Destroyed (52) 260 Value Destroyed (774) 774 Prototype IDs (3) 60 Alien Tech Used (0) 0 Bonus (35) 35 TOTAL SCORE: 1729 Bonus ------- Follower Combat Kills 35 Cogmind --------- Core Integrity 0/250 Matter 215/300 Energy 100/100 System Corruption 0% Temperature Cool (6) Movement Rolling (120) Ox1 Location -10/Subcaves Parts ------- > --- POWER (1) -------- (None) > --- PROPULSION (2) --- Subdweller Monowheel Subdweller Monowheel > --- UTILITY (2) ------ High-capacity Storage Unit > --- WEAPON (2) ------- Grenade Launcher Grenade Launcher > --- INVENTORY (20) --- Light Nuclear Core Wheel Wheel Medium Storage Unit High-capacity Storage Unit Huge Storage Unit Small Matter Pod (50) Medium Matter Pod (51) Structural Scanner Thief Drone Bay (3/3) EM Pulse Gun Particle Gun Light Assault Rifle Light Assault Rifle Ripper Peak State ------------ > --- POWER ------------ Ion Engine > --- PROPULSION ------- Light Treads Light Treads > --- UTILITY ---------- High-capacity Storage Unit Thief Drone Bay > --- WEAPON ----------- Assault Rifle Assault Rifle > --- INVENTORY -------- Ion Engine Ion Engine Light Nuclear Core Light Treads Light Treads Wheel Wheel Medium Storage Unit High-capacity Storage Unit Huge Storage Unit Small Matter Pod Medium Matter Pod Structural Scanner EM Pulse Gun Particle Gun Light Assault Rifle Light Assault Rifle Grenade Launcher Grenade Launcher Ripper [Rating: 15] Favorites ----------- Power Ion Engine Engine Ion Engine Propulsion Light Treads Treads Light Treads Leg Aluminum Leg Wheel Wheel Utility High-capacity Storage Unit Device Seismic Detector Storage High-capacity Storage Unit Processor Visual Processing Unit Weapon Assault Rifle Energy Gun Particle Gun Ballistic Gun Assault Rifle Launcher Grenade Launcher Impact Weapon Hammer Build | -11 -10 -10 -10 ------- Run | Yrd Mat Min Sub Slots Evolved . | . . . . Power . | . . . . Propulsion . | . . . . Utility . | . . . . Weapon . | . . . . Parts Attached 28 | 8 9 4 7 Power 4 | 1 1 1 1 Engine 4 | 1 1 1 1 Core . | . . . . Reactor . | . . . . Propulsion 9 | 2 2 1 4 Treads 4 | . 1 1 2 Leg 2 | 2 . . . Wheel 3 | . 1 . 2 Hover . | . . . . Flight . | . . . . Utility 8 | 3 3 2 . Device 4 | 2 . 2 . Storage 2 | 1 1 . . Processor 2 | . 2 . . Hackware . | . . . . Protection . | . . . . Artifact . | . . . . Weapon 7 | 2 3 . 2 Energy Gun 1 | . . . 1 Energy Cannon . | . . . . Ballistic Gun 3 | 2 1 . . Ballistic Cannon . | . . . . Launcher 2 | . 1 . 1 Special Weapon . | . . . . Impact Weapon 1 | . 1 . . Slashing Weapon . | . . . . Piercing Weapon . | . . . . Special Melee Weapon . | . . . . Unidentified Prototypes 1 | . . 1 . Parts Lost 11 | . 1 1 9 Power 2 | . . . 2 Propulsion 5 | . . 1 4 Utility 2 | . 1 . 1 Weapon 2 | . . . 2 Highest Loss Streak 4 | . 1 1 4 To Critical Strikes . | . . . . Average Backups 16 | 6 15 19 18 Power 2 | 1 2 2 1 Propulsion 4 | 3 4 4 3 Utility 5 | . 4 6 7 Weapon 5 | . 4 6 6 Tool/Special . | . . . . Unused Backups 19 | . 6 . 13 Power 1 | . . . 1 Propulsion 3 | . 1 . 2 Utility 8 | . 2 . 6 Weapon 7 | . 3 . 4 Tool/Special . | . . . . Average Slot Usage (%) 96 | . 94 100 96 Engine 14 | . 14 14 14 Treads 19 | . 11 26 26 Leg 2 | . 4 . . Wheel 5 | . 11 1 . Device 9 | . 6 13 11 Storage 14 | . 14 14 14 Processor 1 | . 3 . . Ballistic Gun 26 | . 26 27 24 Peak Build Rating 15 | 7 10 15 10 Average Rating 9 | 4 8 12 9 On Entrance 7 | . 7 8 15 Avg Prop Armor Cover (%) 11 | . 11 11 . Naked Turns . | . . . . Heaviest Build 54 | 12 50 54 51 Greatest Support 40 | 20 20 40 40 Greatest Overweight (x) 4 | 1 4 4 1 Average Overweight (x) 2 | . 3 1 1 Largest Inventory Capacity 20 | 8 20 20 20 Average Capacity 18 | 7 18 20 20 Most Carried 20 | 8 20 20 20 Average Carried 16 | 6 15 19 18 Final Capacity 20 | 8 20 20 20 Final Carried 20 | 8 19 20 15 Class Distribution -------------------- 98% | Mutant Dominant Class ---------------- Mutant | -10/Materials Mutant | -10/Mines Mutant | -10/Subcaves Resources | -11 -10 -10 -10 ----------- Run | Yrd Mat Min Sub Matter Collected 1510 | 390 473 306 341 Remotely . | . . . . Salvage Created 1407 | 269 482 408 248 Parts 101 | 29 36 24 12 Haulers Intercepted 1 | . 1 . . Recyclers Shooed 5 | . 3 2 . Parts Field Recycled . | . . . . Retrieved Matter . | . . . . Parts Self-Destructed 16 | . . . 16 Prevented . | . . . . Parts Restored . | . . . . Kills | -11 -10 -10 -10 ------- Run | Yrd Mat Min Sub Combat Hostiles Destroyed 27 | . 8 11 8 Guns 18 | . 5 8 5 AOE 9 | . 3 3 3 Classes Destroyed 11 | 3 6 1 1 Worker 7 | 2 5 . . Builder 1 | . . 1 . Tunneler 9 | 8 . 1 . Hauler 1 | . 1 . . Recycler 3 | 1 . 2 . Mechanic 1 | . 1 . . Operator 1 | . 1 . . Watcher 2 | . 2 . . Swarmer 15 | . 3 9 3 Grunt 8 | . 5 2 1 Subdweller 4 | . . . 4 Best Kill Streak 5 | 5 4 3 3 Combat Bots Only 3 | . 3 3 3 Max Kills in Single Turn 2 | 1 2 2 2 Gunslinging . | . . . . Exploded 2 | . 2 2 2 Melee . | . . . . Uniques/NPCs Destroyed . | . . . . Combat | -11 -10 -10 -10 -------- Run | Yrd Mat Min Sub Hostile Shots Fired 222 | . 52 36 134 Missed 82 | . 19 13 50 Hits 140 | . 33 23 84 Projectile 140 | . 33 23 84 Critical Strikes 3 | . 1 . 2 Damage Taken 1768 | 1 419 226 1122 Core 251 | . 29 42 180 Absorbed by Shields . | . . . . Regen/Repaired (Parts) 162 | . 162 . . Core Remaining (%) 100 | 100 . . . Volleys Fired 165 | 28 74 28 35 Largest 2 | 2 2 2 2 Hottest 85 | 40 40 50 85 Shots Fired 321 | 56 143 56 66 Gun 304 | 56 139 53 56 Cannon . | . . . . Launcher 17 | . 4 3 10 Special . | . . . . Kinetic 297 | 56 139 53 49 Thermal 7 | . . . 7 Explosive 17 | . 4 3 10 Electromagnetic . | . . . . Robot Hit Streak 17 | 10 14 7 17 Robot Miss Streak 4 | 3 4 2 2 Penetration Max . | . . . . Secondary Targets 1 | . . 1 . Max Gunslinging Chain 1 | . . 1 . Shots Hit Robots 198 | 35 85 32 46 Core Hits 88 | 16 33 17 22 Critical Kills . | . . . . Critical Parts Destroyed 1 | . . . 1 Critical Strikes 1 | . . . 1 Destroy 1 | . . . 1 Melee Attacks 1 | . 1 . . Impact 1 | . 1 . . Slashing . | . . . . Piercing . | . . . . Sneak Attacks . | . . . . Combat Hostiles . | . . . . Follow-up Attacks . | . . . . Damage Inflicted 2980 | 369 1146 556 909 Guns 2340 | 366 999 374 601 Cannons . | . . . . Explosions 637 | . 147 182 308 Melee . | . . . . Ramming 3 | 3 . . . Kinetic 2229 | 366 999 374 490 Thermal 111 | . . . 111 Explosive 637 | . 147 182 308 Electromagnetic . | . . . . Impact . | . . . . Slashing . | . . . . Piercing . | . . . . Highest Corruption . | . . . . Average Corruption . | . . . . Corruption Purged . | . . . . Corruption Blocked . | . . . . Overload Shots . | . . . . Overflow Damage . | . . . . Projectiles . | . . . . Explosions . | . . . . Melee . | . . . . Knockbacks . | . . . . Impact . | . . . . Kinetic . | . . . . Secondary . | . . . . Self-Inflicted Damage 39 | 1 . . 38 Shots 1 | . . . 1 Rammed 1 | 1 . . . Targets Rammed 1 | 1 . . . Kicked . | . . . . Crushed . | . . . . Highest Temperature 34 | . 34 2 . Average Temperature 12 | . 12 2 . Received Heat Transfer 618 | . 240 42 336 Siege Activations . | . . . . Martial Activations . | . . . . Shielding Activations . | . . . . Robots Disrupted . | . . . . Combat Hostiles . | . . . . Robots Corrupted . | . . . . Combat Hostiles . | . . . . Parts Fried . | . . . . Impact Corruptions . | . . . . Robots Melted . | . . . . Combat Hostiles . | . . . . Parts Melted 1 | . . 1 . Heat Transferred 259 | . . . 259 Parts Sabotaged . | . . . . Parts Stolen . | . . . . Parts Stripped . | . . . . Power Chain Reactions . | . . . . Alert | -11 -10 -10 -10 ------- Run | Yrd Mat Min Sub Maximum Alert Level . | . . . . Low Security (%) 100 | 100 100 100 . Level 1 . | . . . . Level 2 . | . . . . Level 3 . | . . . . Level 4 . | . . . . Level 5 . | . . . . High Security . | . . . . Max Security . | . . . . Peak Influence 153 | 20 104 153 . Initial 34 | . . 34 . Average 22 | 4 13 39 . Influence Increases 830 | 55 332 327 116 Destroy 0b10 Robot/C 480 | . 160 220 100 Destroy 0b10 Robot/NC 125 | 55 50 20 . Destroy Leader 106 | . 56 40 10 Allied During Kill 36 | . . 30 6 Successful Hack 15 | . 15 . . Disable Machine 15 | . 15 . . Destroy Structure 38 | . 21 17 . Lose Combat Pursuer 15 | . 15 . . Influence Decreases 808 | 55 244 340 169 Entered New Map 93 | . . 54 39 Time Decay 676 | 55 244 277 100 Lost Part 39 | . . 9 30 Squads Dispatched 3 | . 3 . . Investigation 1 | . 1 . . Extermination . | . . . . Reinforcement 2 | . 2 . . Assault . | . . . . Garrison . | . . . . Intercept . | . . . . Searches Triggered . | . . . . Construction Impeded . | . . . . Haulers Reinforced . | . . . . Active Scanning Responses . | . . . . Cargo Convoy Interrupts . | . . . . Stealth | -11 -10 -10 -10 --------- Run | Yrd Mat Min Sub Distress Signals 1 | . 1 . . Communications Jammed . | . . . . Distress Signals . | . . . . Times Spotted 45 | . 23 11 11 Peak Tracking Total 5 | . 4 3 5 Tactical Retreats 1 | . 1 . . Traps | -11 -10 -10 -10 ------- Run | Yrd Mat Min Sub Traps Triggered 1 | . 1 . . Indirectly . | . . . . Trap Hack Attempts . | . . . . Triggered . | . . . . Disarmed . | . . . . Reprogrammed . | . . . . Reused . | . . . . Traps Extracted . | . . . . Installed . | . . . . Triggered . | . . . . Machines | -11 -10 -10 -10 ---------- Run | Yrd Mat Min Sub Machines Disabled 6 | . 2 . 4 Max in Single Turn 2 | . 1 . 2 Machines Repaired . | . . . . Machines Dismantled . | . . . . Machines Sabotaged . | . . . . Overloaded Fab Kills . | . . . . Hacking | -11 -10 -10 -10 --------- Run | Yrd Mat Min Sub Machines Accessed 6 | . 5 1 . Terminals 3 | . 3 . . Fabricators . | . . . . Repair Stations 1 | . 1 . . Recycling Units 1 | . 1 . . Scanalyzers . | . . . . Garrison Access . | . . . . Total Hacks 16 | . 15 1 . Successful 10 | . 9 1 . Failed 5 | . 5 . . Catastrophic 1 | . 1 . . Database Lockouts 1 | . 1 . . Manual 9 | . 9 . . Terminals 9 | . 9 . . Fabricators . | . . . . Repair Stations 4 | . 4 . . Recycling Units 2 | . 2 . . Scanalyzers . | . . . . Garrison Access . | . . . . Terminal Hacks 3 | . 2 1 . Part Schematic 1 | . 1 . . Prototype ID Bank 1 | . 1 . . Open Door 1 | . . 1 . Fabricator Hacks . | . . . . Repair Station Hacks 4 | . 4 . . Scan Component 2 | . 2 . . Repair 2 | . 2 . . Recycling Unit Hacks 1 | . 1 . . Retrieve Components 1 | . 1 . . Scanalyzer . | . . . . Garrison Access Hacks . | . . . . Unauthorized Hacks 2 | . 2 . . Terminals 2 | . 2 . . Assimilate 1 | . 1 . . Operators 1 | . 1 . . Fabricators . | . . . . Repair Stations . | . . . . Recycling Units . | . . . . Scanalyzers . | . . . . Garrison Access . | . . . . Data Cores Recovered . | . . . . Used . | . . . . Hacking Detections 4 | . 4 . . Full Trace Events . | . . . . Feedback Events . | . . . . Feedback Blocked . | . . . . Robot Schematics Acquired . | . . . . Robots Built . | . . . . Authchips . | . . . . Time . | . . . . Total Robot Build Rating . | . . . . Part Schematics Acquired 1 | . 1 . . Parts Built . | . . . . Authchips . | . . . . Time . | . . . . Total Part Build Rating . | . . . . Part Studies Acquired . | . . . . Parts Repaired 2 | . 2 . . Time 52 | . 52 . . Parts Recycled . | . . . . Recycled Matter . | . . . . Retrieved Matter . | . . . . Retrieved Components 1 | . 1 . . Parts Scanalyzed . | . . . . Part Schematics Acquired . | . . . . Parts Damaged . | . . . . Bothacking | -11 -10 -10 -10 ------------ Run | Yrd Mat Min Sub Used RIF Installer . | . . . . Robots Hacked . | . . . . Non-combat . | . . . . Combat . | . . . . Robot Hacks Applied . | . . . . Relay Couplers Released . | . . . . Fabnet Peak Effective % . | . . . . Robots Rewired . | . . . . Allies Hacked . | . . . . Hacks Repelled . | . . . . Allies | -11 -10 -10 -10 -------- Run | Yrd Mat Min Sub Total Allies 2 | . . 2 . Largest Group 2 | . . 2 2 Highest-Rated Group 42 | . . 42 42 Highest-Rated Ally 31 | . . 31 31 Total Orders . | . . . . Ally Attacks 8 | . . 4 4 Total Damage 105 | . . 41 64 Kills 1 | . . . 1 Allies Corrupted . | . . . . Allies Melted . | . . . . Intel | -11 -10 -10 -10 ------- Run | Yrd Mat Min Sub Active Infowar (turns) 1872 | 32 918 468 454 Optics 278 | . 278 . . Seismic 1594 | 32 640 468 454 Robot Analysis Total . | . . . . Derelict Logs Recovered 2 | . . 1 1 Drone Launches . | . . . . Drone Recoveries . | . . . . Exploration | -11 -10 -10 -10 ------------- Run | Yrd Mat Min Sub Turns Passed 3406 | 294 1466 1088 558 Spaces Moved 1556 | 119 833 426 178 Core 10 | 10 . . . Treads 566 | . . 391 175 Legs 302 | 109 193 . . Wheels 678 | . 640 35 3 Hover . | . . . . Flight . | . . . . Fastest Speed 50 | 50 120 140 120 Average Speed 172 | 117 135 231 237 Slowest Speed 260 | 120 260 240 240 Overloaded Moves . | . . . . Propulsion Burnouts . | . . . . Robots Hopped . | . . . . Potential Cave-ins . | . . . . Cave-ins Triggered . | . . . . Exploration Rate (%) 43 | 5 84 66 17 Regions Visited 3 Branch Regions 2 Pre-discovered Areas 1 | . . . 1 Known Exits Taken 1 | . 1 . . Unknown Exits Taken 2 | 1 . 1 . Scrap Searched 1 | . . 1 . Spaces Dug . | . . . . Terrain Destroyed 66 | . 20 25 21 Melee . | . . . . Projectile . | . . . . AOE 66 | . 20 25 21 Terrain Rammed . | . . . . Walls Destroyed . | . . . . Machines Disabled . | . . . . Actions | -11 -10 -10 -10 --------- Run | Yrd Mat Min Sub Total 1972 | 219 1034 472 247 Wait 161 | 55 82 1 23 Move 1553 | 118 832 425 178 Hop . | . . . . Pick Up 37 | 8 21 6 2 Fast Attach 12 | 7 3 2 . Attach 10 | . 2 1 7 Detach . | . . . . Swap 13 | 1 7 3 2 Drop 19 | 1 12 6 . Fire 165 | 28 74 28 35 Melee 1 | . 1 . . Ram 1 | 1 . . . Kick . | . . . . Crush . | . . . . Escape Stasis . | . . . . Rewire . | . . . . Trap . | . . . . Miscellaneous . | . . . . Route ------- -11/Scrapyard -10/Materials (discovered 4 exits: *Mat x2 / *Min x2) -10/Mines (discovered 3 exits: *Mat x2 / [*Sub]) -10/Subcaves (discovered 1 exit: [*Rec]) History --------- Turn | Location | Event 18 | -11/Scrapyard | Discovered new exit (range 16) 295 | -11/Scrapyard | Entered Materials 315 | -10/Materials | Build established: Mutant 605 | -10/Materials | Discovered new exit (range 15) 862 | -10/Materials | Central database locked down 1341 | -10/Materials | Repaired Assault Rifle 1369 | -10/Materials | Repaired Lgt. Treads 1459 | -10/Materials | Discovered new exit (range 12) 1473 | -10/Materials | Discovered new exit (range 15) 1609 | -10/Materials | Discovered new exit (range 10) 1718 | -10/Materials | Identified exit to Mines 1738 | -10/Materials | Identified exit to Materials 1761 | -10/Materials | Entered Mines 1894 | -10/Mines | A weapon hastily lodged in a ceiling crevice suddenly fell to the ground 2115 | -10/Mines | Learned location of 1 exit from Materials 2158 | -10/Mines | Discovered exit to Materials (range 4) 2260 | -10/Mines | Found the Drone Emporium 2272 | -10/Mines | Found Prototype Device 2272 | -10/Mines | Identified Thief Drone Bay 2413 | -10/Mines | Discovered new exit (range 5) 2584 | -10/Mines | Discovered exit to Materials (range 8) 2849 | -10/Mines | Entered Subcaves 2849 | -10/Subcaves | Accompanied by 2 allies 2854 | -10/Subcaves | Led the pair of lost Derelicts to an unsafe place 3388 | -10/Subcaves | Core integrity fell below 50% 3396 | -10/Subcaves | Discovered new exit (range 16) 3398 | -10/Subcaves | Core integrity fell below 20% 3407 | -10/Subcaves | Destroyed by Autobeam Turret with Autobeam Last Messages --------------- 03354_ Subatomizers dissect the Imp. Heat Sink. 03354_ Acquired Sub. Monowheel. 03379_ Acquired 42 matter. 03384_ Assault Rifle destroyed. 03385_ S-10 Pest destroyed. 03386_ Lgt. Treads destroyed. 03390_ Subatomizers dissect the Lgt. Ion Engine. 03391_ S-10 Pest destroyed. 03393_ Lgt. Assault Rifle fries itself beyond repair. 03393_ Acquired 35 matter. 03396_ EXIT=FOUND 03397_ Flight Unit fries itself beyond repair. 03400_ Machine disabled. 03401_ Subatomizers dissect the Lgt. Ion Engine. 03402_ Lgt. Assault Rifle fries itself beyond repair. 03403_ Ion Engine destroyed. 03406_ Machine disabled. 03407_ The unstable cave ceiling collapses. Map ----- +----------------------------------------------------+ | ?????????????????????????????????????????????????? | | ?????????????????????????????????????????????????? | | ?????????????????????????????????????????????????? | | ?????????????????????????????????????????????????? | | ?????????????????????????????????????????????????? | | ?????????????????????????????????????????????????? | | ?????????????????????????????????????????????????? | | ?????????????????????????????????????????????????? | | ?????????????????????????????????????????????????? | | ?????????????????????????????????????????????????? | | ??????????????????????????